bitfinex-derivatives/quotes_ETHF0:USTF0_20250411
["timestamp","ask_amount","ask_price","bid_price","bid_amount"]
[1744374678141,1.27747,1566.5,1566.4,25.40948949]
[1744374678331,1.27755,1566.4,1566.3,0.00956877]
[1744374678722,1.27755,1566.4,1566.3,31.75775825]
[1744374678933,91.79707,1566.8,1566.3,33.03533825]
[1744374679128,3.19329,1566.7,1566.5,25.40948949]
[1744374679431,1.27739,1566.6,1566.5,6.33869999]
[1744374679733,1.27754,1566.5,1566.3,1.28717877]
[1744374679921,91.79707,1566.8,1566.4,25.40948949]
[1744374680118,88.604,1566.8,1566.6,25.40948949]
[1744374680324,1.2773,1566.7,1566.6,25.40948949]
[1744374680827,1.27755,1566.4,1566.3,0.00956877]
[1744374681324,6.38674,1566.7,1566.3,34.96555825]
[1744374681627,1.27755,1566.4,1566.3,0.00956877]
[1744374681835,1.27755,1566.4,1566.3,8.77e-06]
[1744374682721,6.27755,1566.4,1566.3,8.77e-06]
[1744374683028,1.27787,1566.0,1565.9,13.52323747]
[1744374683622,1.27787,1566.0,1565.9,25.40948949]
[1744374683818,3.1951,1565.8,1565.4,4.48616]
[1744374684029,1.27787,1566.0,1565.9,25.40948949]
[1744374684332,3.21736877,1566.1,1565.8,6.34826876]
[1744374684333,1.27796,1565.9,1565.8,0.00956877]
[1744374684527,1.27793,1566.0,1565.8,1.28760877]
[1744374684722,1.28740877,1566.1,1566.0,31.74818948]
[1744374684929,1.28735877,1566.1,1566.0,31.74818948]
[1744374685627,1.28735877,1566.1,1565.8,0.00956877]
[1744374685628,1.27796,1565.9,1565.8,0.00956877]
[1744374685832,4.48576,1565.9,1565.8,0.00956877]
[1744374686130,1.27796,1565.9,1565.8,25.40948949]
[1744374686328,1.27796,1565.9,1565.4,4.48612]
[1744374686329,1.27828,1565.5,1565.4,3.2078]
[1744374686628,3.19559,1565.6,1565.2,3.2078]
[1744374686824,1.27834,1565.5,1565.4,3.2078]
[1744374687138,1.27853,1565.2,1565.1,23.33793217]
[1744374687325,1.2785,1565.3,1565.2,6.33869999]
[1744374687631,1.27836,1565.4,1565.3,23.96734949]
[1744374687830,1.28792877,1565.4,1565.3,23.96734949]
[1744374688027,0.00956877,1565.4,1565.3,23.96734949]
[1744374688227,0.00956877,1565.4,1565.1,23.33793217]
[1744374688228,1.27853,1565.2,1565.1,23.33793217]
[1744374688432,1.27853,1565.2,1565.1,53.64398165]
[1744374689033,0.00956877,1565.4,1565.1,58.64398165]
[1744374689233,1.28793877,1565.4,1565.3,23.96734949]
[1744374689422,0.00956877,1565.4,1565.3,23.96734949]
[1744374689731,0.00956877,1565.4,1565.3,30.30604948]
[1744374689732,1.28792877,1565.4,1565.3,30.30604948]
[1744374689936,1.28792877,1565.4,1565.3,33.51384948]
[1744374690132,0.00956877,1565.4,1565.3,39.79229948]
[1744374690838,1.27804,1565.8,1565.4,3.19592]
[1744374691028,1.27812,1565.7,1565.6,23.96734949]
[1744374691335,1.27812,1565.7,1565.6,27.17514949]
[1744374691529,1.27835,1565.5,1565.3,1.27842]
[1744374691729,1.27828,1565.5,1565.4,6.33869999]
[1744374691934,1.27828,1565.5,1565.4,30.30604948]
[1744374692433,0.00956877,1565.6,1565.2,3.2078]
[1744374692737,1.27861,1565.1,1565.0,3.21736877]
[1744374693130,1.27861,1565.1,1565.0,33.52341825]
[1744374693635,1.27861,1565.1,1565.0,23.97691826]
[1744374694524,6.27861,1565.1,1565.0,0.00956877]
[1744374694729,6.27861,1565.1,1564.5,23.33793217]
[1744374694730,1.27902,1564.6,1564.5,23.33793217]
[1744374695035,1.27902,1564.6,1564.5,21.407862]
[1744374695229,4.48682,1564.6,1564.5,6.3189934]
[1744374695431,6.27902,1564.6,1564.5,4.7390234]
[1744374695638,6.27902,1564.6,1564.5,3.1977534]
[1744374695841,6.27902,1564.6,1564.5,3.4e-06]
[1744374696138,1.2791,1564.5,1564.4,2.17e-06]
[1744374696340,1.27926,1564.3,1564.2,27.98055904]
[1744374696635,1.27967,1563.8,1563.7,55.98525382]
[1744374696835,1.27965,1563.9,1563.8,6.33869999]
[1744374697032,1.27965,1563.9,1563.8,30.30604948]
[1744374697342,1.27967,1563.8,1563.7,52.77745382]
[1744374697532,4.48747,1563.8,1563.7,51.22822259]
[1744374697939,9.48747,1563.8,1563.7,47.49149259]
[1744374698242,9.48747,1563.8,1563.7,41.81376259]
[1744374698437,9.48747,1563.8,1563.7,32.10049259]
[1744374698738,1.27992,1563.5,1563.4,21.54330751]
[1744374698935,1.28008,1563.3,1563.2,37.61771763]
[1744374699138,4.48788,1563.3,1563.2,32.05031763]
[1744374699338,1.28016,1563.2,1563.1,39.27880569]
[1744374699534,1.28016,1563.2,1563.1,34.29402569]
[1744374699740,6.28016,1563.2,1563.1,32.21372569]
[1744374699940,1.28016,1563.2,1563.1,32.21372569]
[1744374700135,6.28016,1563.2,1563.1,24.04570569]
[1744374700447,1.28025,1563.1,1563.0,0.00956877]
[1744374700744,4.48805,1563.1,1563.0,8.77e-06]
[1744374700927,9.48805,1563.1,1563.0,8.77e-06]
[1744374701331,9.48805,1563.1,1562.3,19.86886423]
[1744374701332,1.28082,1562.4,1562.3,19.86886423]
[1744374702329,3.31921936,1563.3,1562.6,30.30604948]
[1744374702535,1.28049,1562.8,1562.7,30.30604948]
[1744374702736,1.28049,1562.8,1562.7,23.96734949]
[1744374702935,3.21740092,1563.1,1562.7,51.56484459]
[1744374703131,0.00960092,1563.1,1563.0,30.30604948]
[1744374703335,1.28985092,1563.1,1563.0,30.30604948]
[1744374703545,0.00960092,1563.1,1563.0,48.35704459]
[1744374703737,1.28985092,1563.1,1563.0,48.35704459]
[1744374703938,0.00960092,1563.1,1563.0,49.63737459]
[1744374704132,0.00960092,1563.1,1563.0,48.35704459]
[1744374704744,0.00960092,1563.1,1563.0,49.63737459]
[1744374704942,0.00960092,1563.1,1563.0,44.63737459]
[1744374705145,4.94917077,1563.1,1563.0,44.63737459]
[1744374705347,4.94917077,1563.1,1563.0,43.35704459]
[1744374706445,4.94917077,1563.1,1563.0,49.63737459]
[1744374706741,1.28023,1563.2,1563.0,48.35704459]
[1744374706950,1.28016,1563.2,1563.1,40.2261446]
[1744374707243,1.28016,1563.2,1563.1,3.2078]
[1744374707445,1.28036,1563.0,1562.8,3.2078]
[1744374707641,7.40935478,1563.3,1563.2,23.96734949]
[1744374707837,8.68943478,1563.3,1563.2,43.35704459]
[1744374708038,8.68943478,1563.3,1563.2,37.0183446]
[1744374708240,7.40935478,1563.3,1563.2,49.63720459]
[1744374708846,0.57045478,1563.3,1563.2,49.63720459]
[1744374709039,12.34892463,1563.7,1563.6,1.27984]
[1744374709250,12.34892463,1563.7,1563.6,31.58588948]
[1744374709547,0.64,1564.1,1564.0,1.27951]
[1744374709745,3.2078,1564.3,1564.1,0.01302017]
[1744374710047,1.27926,1564.3,1564.2,23.96734949]
[1744374710244,1.27935,1564.2,1564.0,0.00960092]
[1744374710443,1.27943,1564.1,1564.0,0.00960092]
[1744374710649,1.27943,1564.1,1564.0,27.1392049]
[1744374710844,1.27943,1564.1,1564.0,0.00960092]
[1744374711441,1.27943,1564.1,1564.0,27.1392049]
[1744374711647,1.27943,1564.1,1564.0,33.47790489]
[1744374711941,1.27943,1564.1,1564.0,27.1392049]
[1744374712250,1.27943,1564.1,1564.0,33.47790489]
[1744374712448,1.27943,1564.1,1564.0,27.1392049]
[1744374712639,1.27943,1564.1,1564.0,31.6818049]
[1744374712834,1.27943,1564.1,1564.0,0.00960092]
[1744374713044,1.91943,1564.1,1564.0,0.00960092]
[1744374713748,6.91943,1564.1,1564.0,0.00960092]
[1744374713950,1.91943,1564.1,1564.0,0.00960092]
[1744374716247,1.91939,1564.2,1564.0,33.47790489]
[1744374716447,1.27939,1564.2,1564.1,33.46830397]
[1744374716948,1.27939,1564.2,1564.1,3.16225449]
[1744374717747,1.27939,1564.2,1564.1,27.12960398]
[1744374718148,1.27939,1564.2,1564.1,3.16225449]
[1744374718944,1.27943,1564.1,1564.0,4.24850092]
[1744374719251,1.27943,1564.1,1564.0,7.41075541]
[1744374720049,1.27943,1564.1,1564.0,4.24850092]
[1744374720551,1.27943,1564.1,1564.0,7.41075541]
[1744374721251,11.52486,1564.3,1564.0,7.41075541]
[1744374721252,0.64,1564.3,1564.0,37.71680489]
[1744374721451,1.27935,1564.2,1564.1,33.46830397]
[1744374721748,1.27935,1564.2,1564.1,23.96734949]
[1744374721956,1.27943,1564.1,1564.0,4.24850092]
[1744374722250,1.27943,1564.1,1564.0,0.00960092]
[1744374722552,1.27943,1564.1,1564.0,3.21740092]
[1744374722749,11.397,1564.1,1563.7,1.45399]
[1744374723055,1.28008,1563.3,1563.2,4.1829]
[1744374723243,3.20042,1563.2,1562.7,0.84238257]
[1744374723551,3.20137,1562.8,1562.4,3.7645]
[1744374723854,3.2078,1562.6,1562.1,4.5986839]
[1744374724052,0.65040092,1562.7,1562.6,6.33869999]
[1744374724256,1.29022092,1562.7,1562.4,1.29040092]
[1744374724453,0.00960092,1562.7,1562.6,30.30604948]
[1744374724649,0.6408,1563.3,1562.6,7.61935999]
[1744374724856,0.6408,1563.3,1563.2,23.95774857]
[1744374725048,1.92008,1563.3,1563.2,33.45870305]
[1744374725242,90.59004,1563.4,1563.2,33.45870305]
[1744374725448,91.8778,1563.4,1562.7,3.2078]
[1744374725649,1.28019,1563.2,1563.1,30.29644856]
[1744374726156,88.67,1563.4,1563.2,1.28013]
[1744374726351,88.67,1563.4,1563.3,30.29644856]
[1744374726558,1.28025,1563.1,1563.0,4.3425]
[1744374726848,1.28025,1563.1,1563.0,34.63894856]
[1744374727054,1.28025,1563.1,1563.0,31.46250306]
[1744374727259,1.28016,1563.2,1563.0,31.46250306]
[1744374727452,1.28016,1563.3,1563.2,23.95774857]
[1744374727842,88.67,1563.4,1563.3,1.28008]
[1744374728043,1.27986,1563.6,1563.3,37.94654305]
[1744374728248,1.27992,1563.5,1563.4,31.62640306]
[1744374728444,8.3742,1563.8,1563.1,4.48802]
[1744374728445,1.28005,1563.4,1563.1,4.48802]
[1744374728650,1.28005,1563.4,1562.8,3.20123]
[1744374728651,6.40765,1563.5,1562.7,3.2078]
[1744374728856,1.28033,1563.0,1562.9,30.29644856]
[1744374729154,1.2803,1563.1,1562.9,30.29644856]
[1744374729363,1.2803,1563.1,1563.0,4.5064]
[1744374729364,1.28025,1563.1,1563.0,4.5064]
[1744374729553,4.5264,1563.4,1563.0,37.96510305]
[1744374729854,4.5264,1563.4,1563.2,23.95774857]
[1744374730054,1.28016,1563.2,1563.1,33.45870305]
[1744374730359,4.5264,1563.4,1563.1,27.12000306]
[1744374730552,1.28008,1563.3,1563.2,33.45870305]
[1744374730753,5.80645,1563.4,1563.2,30.29644856]
[1744374730958,1.28008,1563.3,1563.2,27.12000306]
[1744374731159,1.28003,1563.4,1563.3,33.45870305]
[1744374731457,1.28003,1563.4,1563.3,30.29644856]
[1744374731657,1.28003,1563.4,1563.3,3.16225449]
[1744374731858,1.28003,1563.4,1563.3,27.12000306]
[1744374732260,8.20005,1563.4,1562.7,3.2078]
[1744374732460,1.28025,1563.1,1563.0,30.29644856]
[1744374732657,1.28025,1563.1,1563.0,23.95774857]
[1744374732854,1.28033,1563.0,1562.8,4.1042]
[1744374733052,1.28983092,1563.2,1563.0,6.33869999]
[1744374733257,1.28983092,1563.2,1563.1,25.23799857]
[1744374733258,0.00960092,1563.2,1563.1,25.23799857]
[1744374733572,0.00960092,1563.2,1563.1,39.34284075]
[1744374733758,89.328,1564.0,1563.4,3.20001]
[1744374733955,1.27967,1563.8,1563.7,30.28684764]
[1744374734155,89.328,1564.0,1563.8,31.56651764]
[1744374734449,89.328,1564.0,1563.8,37.79980213]
[1744374734652,89.328,1564.0,1563.5,1.27986]
[1744374734653,1.27973,1563.8,1563.5,1.27986]
[1744374734853,5.50366,1563.9,1563.8,6.33869999]
[1744374735053,88.688,1564.0,1563.9,30.28684764]
[1744374735249,88.688,1564.0,1563.9,33.44910213]
[1744374735461,88.688,1564.0,1563.9,35.57367281]
[1744374735760,89.96751,1564.0,1563.9,3.16225449]
[1744374735962,94.19151,1564.0,1563.9,33.44910213]
[1744374736262,94.19151,1564.0,1563.9,3.16225449]
[1744374736563,92.912,1564.0,1563.7,0.00960092]
[1744374736764,1.27959,1563.9,1563.8,33.44910213]
[1744374736959,1.27967,1563.8,1563.7,27.12000306]
[1744374737257,5.82717,1563.8,1563.7,9.2e-07]
[1744374737455,10.82717,1563.8,1563.7,9.2e-07]
[1744374738460,5.82717,1563.8,1563.7,3.16225541]
[1744374738859,1.27967,1563.8,1563.7,27.11040306]
[1744374739060,6.27967,1563.8,1563.7,9.2e-07]
[1744374739463,13.96347,1563.8,1563.7,9.2e-07]
[1744374739664,8.96347,1563.8,1563.7,9.2e-07]
[1744374739863,1.27992,1563.5,1563.4,7.8561]
[1744374740171,1.27989,1563.6,1563.5,6.33869999]
[1744374740370,1.27984,1563.6,1563.5,11.01835449]
[1744374740564,1.27984,1563.6,1563.5,41.30520213]
[1744374740869,1.28016,1563.2,1563.1,3.2078]
[1744374741162,1.28016,1563.2,1563.1,4.6043039]
[1744374741465,1.28016,1563.2,1563.1,34.84560603]
[1744374741668,1.28016,1563.2,1563.1,3.16225449]
[1744374741857,1.28025,1563.1,1563.0,0.00960092]
[1744374742365,12.36525,1563.1,1563.0,0.00960092]
[1744374742669,14.15745,1563.1,1563.0,0.00960092]
[1744374743063,17.36525,1563.1,1563.0,9.2e-07]
[1744374744163,12.36525,1563.1,1563.0,9.2e-07]
[1744374744563,9.15745,1563.1,1563.0,9.2e-07]
[1744374746473,12.36525,1563.1,1563.0,9.2e-07]
[1744374746663,13.32529651,1563.1,1563.0,9.2e-07]
[1744374747172,5.44809651,1563.1,1563.0,3.16225541]
[1744374747364,2.24029651,1563.1,1563.0,33.44910305]
[1744374747667,2.24029651,1563.1,1563.0,9.2e-07]
[1744374747873,13.13159651,1563.1,1563.0,9.2e-07]
[1744374748572,18.13159651,1563.1,1563.0,9.2e-07]
[1744374749166,22.91349651,1563.1,1563.0,9.2e-07]
[1744374749769,17.91349651,1563.1,1563.0,9.2e-07]
[1744374750570,12.17155,1563.1,1563.0,9.2e-07]
[1744374751172,7.05025092,1563.3,1563.0,6.33870091]
[1744374751370,1.28025,1563.1,1563.0,9.2e-07]
[1744374751767,8.90225,1563.1,1563.0,9.2e-07]
[1744374751969,13.90225,1563.1,1563.0,9.2e-07]
[1744374752163,70.41379,1563.0,1562.4,3.16225449]
[1744374752379,1.28082,1562.4,1562.3,23.94814765]
[1744374752575,1.28082,1562.4,1562.3,1.32696449]
[1744374752776,1.28115,1562.0,1561.9,7.9347]
[1744374753078,1.28082,1562.4,1562.3,28.93683764]
[1744374753773,1.28082,1562.4,1562.3,41.87153764]
[1744374753964,0.00960092,1562.5,1562.3,46.36022764]
[1744374754277,1.28069,1562.6,1562.4,37.24039624]
[1744374754573,3.84032,1563.3,1562.8,1.28046]
[1744374754768,3.84032,1563.3,1563.2,27.64659672]
[1744374754769,1.28008,1563.3,1563.2,27.64659672]
[1744374755169,3.83985,1563.5,1563.2,27.64659672]
[1744374755378,1.91992,1563.5,1563.4,27.64659672]
[1744374755675,1.92952092,1563.5,1563.4,27.64659672]
[1744374755977,1.92952092,1563.5,1563.4,22.58853673]
[1744374756471,0.00960092,1563.5,1563.4,32.64659672]
[1744374757073,3.20956092,1563.5,1563.1,0.00960092]
[1744374757276,1.28952092,1563.5,1563.4,27.64659672]
[1744374757477,0.00960092,1563.5,1563.4,27.64659672]
[1744374757782,0.00960092,1563.5,1563.4,33.92659672]
[1744374757977,22.36666878,1563.9,1563.6,1.27978]
[1744374758170,22.36666878,1563.9,1563.8,27.6369958]
[1744374758576,22.36666878,1563.9,1563.8,42.88150627]
[1744374758872,89.365,1564.3,1563.8,6.19093258]
[1744374758873,14.81870956,1564.3,1563.8,6.19093258]
[1744374759078,16.08494939,1564.3,1564.2,13.16622702]
[1744374759580,16.28586135,1564.3,1564.2,13.16622702]
[1744374760079,24.06996135,1564.3,1564.2,13.16622702]
[1744374760469,16.08494939,1564.3,1564.2,13.16622702]
[1744374760676,14.80568939,1564.3,1564.2,18.16622702]
[1744374761076,1.28881092,1564.4,1564.2,21.37402702]
[1744374761278,1.28881092,1564.4,1564.3,13.16622702]
[1744374761978,1.48972288,1564.4,1564.3,13.16622702]
[1744374762478,0.00960092,1564.4,1564.3,13.16622702]
[1744374762675,0.00960092,1564.4,1564.3,14.44548702]
[1744374762877,0.00960092,1564.4,1564.3,19.44548702]
[1744374763173,9.97606132,1564.8,1564.7,1.27894]
[1744374763379,9.97606132,1564.8,1564.7,16.3644261]
[1744374763582,9.97606132,1564.8,1564.7,22.6433661]
[1744374764082,9.97606132,1564.8,1564.7,18.1566261]
[1744374764279,11.45582328,1564.8,1564.7,13.1566261]
[1744374764583,11.25491132,1564.8,1564.7,13.1566261]
[1744374764885,11.25491132,1564.8,1564.7,22.6433661]
[1744374764886,9.97606132,1564.8,1564.7,22.6433661]
[1744374765185,11.25491132,1564.8,1564.7,13.1566261]
[1744374765374,9.15605,1564.8,1564.7,13.1566261]
[1744374765979,1.27894,1564.7,1564.6,7.7617]
[1744374766481,1.47985196,1564.7,1564.6,20.9183261]
[1744374766877,7.8772,1564.8,1564.6,20.9183261]
[1744374767079,1.27894,1564.7,1564.6,7.7617]
[1744374767379,1.27894,1564.7,1564.6,20.9183261]
[1744374767572,1.27894,1564.7,1564.2,1.27929]
[1744374767573,1.27926,1564.3,1564.2,3.2078]
[1744374767778,1.27916,1564.5,1564.2,4.48712]
[1744374767982,1.48007196,1564.5,1564.3,7.8112]
[1744374768176,1.27918,1564.4,1564.3,7.8112]
[1744374768385,1.27917,1564.5,1564.4,13.1566261]
[1744374768576,1.2791,1564.5,1564.4,13.1566261]
[1744374769284,1.48001196,1564.5,1564.4,13.1566261]
[1744374770388,9.37111196,1564.5,1564.4,13.1566261]
[1744374770586,11.28991196,1564.5,1564.0,3.2078]
[1744374770786,9.37111196,1564.5,1564.4,13.1566261]
[1744374770988,1.27935,1564.2,1564.1,7.8083]
[1744374771480,1.27943,1564.1,1564.0,3.2078]
[1744374771888,1.27943,1564.1,1564.0,13.1566261]
[1744374772387,1.27943,1564.1,1564.0,20.9649261]
[1744374773287,11.08942,1564.3,1564.0,20.9649261]
[1744374773484,1.27943,1564.1,1564.0,7.8083]
[1744374773986,1.27943,1564.1,1564.0,20.9649261]
[1744374774681,8.5311,1564.3,1564.0,20.9649261]
[1744374774887,7.04541,1564.6,1564.2,13.1566261]
[1744374775077,1.27918,1564.4,1564.3,8.4618]
[1744374775282,1.27918,1564.4,1564.3,13.1566261]
[1744374775484,1.27918,1564.4,1564.1,3.2078]
[1744374775485,1.27931,1564.3,1564.1,3.2078]
[1744374775880,1.27943,1564.1,1564.0,8.2747]
[1744374776286,1.27943,1564.1,1564.0,21.4313261]
[1744374776490,1.27943,1564.1,1564.0,13.1566261]
[1744374777193,1.27943,1564.1,1564.0,21.4313261]
[1744374777691,1.27951,1564.0,1563.9,0.00960092]
[1744374777887,1.27967,1563.8,1563.7,11.4825]
[1744374778088,0.00341925,1563.9,1563.7,12.76219]
[1744374778282,1.27959,1563.9,1563.8,13.15320685]
[1744374779092,1.27967,1563.8,1563.7,0.00960092]
[1744374779393,9.68687,1563.8,1563.7,0.00960092]
[1744374779587,9.88778196,1563.8,1563.7,0.00960092]
[1744374780094,9.88778196,1563.8,1563.7,13.16280777]
[1744374780286,9.88778196,1563.8,1563.7,0.00960092]
[1744374780792,9.88778196,1563.8,1563.7,13.16280777]
[1744374781491,8.60811196,1563.8,1563.7,13.16280777]
[1744374781692,9.88778196,1563.8,1563.7,13.16280777]
[1744374781890,1.27966,1563.9,1563.7,21.47440777]
[1744374782093,9.34062288,1564.0,1563.9,13.15320685]
[1744374783088,9.13971092,1564.0,1563.9,13.15320685]
[1744374783283,0.00960092,1564.0,1563.9,19.43279685]
[1744374783493,0.00960092,1564.0,1563.9,27.74439685]
[1744374783794,0.00960092,1564.0,1563.9,28.58615127]
[1744374783994,0.00960092,1564.0,1563.9,29.13332191]
[1744374784590,0.00960092,1564.0,1563.9,29.13415186]
[1744374785393,7.45027256,1564.6,1564.1,3.19839]
[1744374785592,7.43725239,1564.6,1564.5,17.63050593]
[1744374785999,9.97606132,1564.7,1564.6,1.27902]
[1744374786194,9.97606132,1564.7,1564.6,21.9324365]
[1744374786492,9.97606132,1564.7,1564.6,26.93218254]
[1744374787298,11.25500132,1564.7,1564.6,19.26165354]
[1744374787597,19.72271328,1564.7,1564.6,19.26165354]
[1744374787900,9.97606132,1564.7,1564.6,20.54067354]
[1744374788198,9.97606132,1564.7,1564.6,21.3853259]
[1744374788398,9.97606132,1564.7,1564.6,20.54067354]
[1744374788899,11.25500132,1564.7,1564.6,19.26165354]
[1744374789293,1.28846734,1564.8,1564.6,21.38521673]
[1744374789591,1.28846734,1564.8,1564.7,19.45335354]
[1744374789794,0.00954734,1564.8,1564.7,22.66115354]
[1744374789987,0.2104593,1564.8,1564.7,15.62436406]
[1744374790193,1.4893093,1564.8,1564.7,12.41656406]
[1744374790395,1.27897,1564.7,1564.5,3.21740092]
[1744374790600,9.22931,1564.7,1564.6,11.57235354]
[1744374790808,9.43022196,1564.7,1564.6,11.57235354]
[1744374791098,9.43022196,1564.7,1564.5,0.00960092]
[1744374791301,8.15121196,1564.7,1564.5,11.58195446]
[1744374791501,8.15121196,1564.7,1564.6,11.57235354]
[1744374791692,8.15121196,1564.7,1564.6,12.85137354]
[1744374791892,8.15121196,1564.7,1564.5,1.28864092]
[1744374792101,8.15121196,1564.7,1564.6,11.57235354]
[1744374792297,0.00954734,1564.8,1564.6,12.41601272]
[1744374792501,0.2104593,1564.8,1564.7,11.57235354]
[1744374792890,1.4893093,1564.8,1564.6,1.27897]
[1744374793096,1.4893093,1564.8,1564.7,11.57235354]
[1744374793299,1.27895,1564.7,1564.5,12.19448092]
[1744374793497,7.9503,1564.7,1564.6,11.57235354]
[1744374793704,1.27902,1564.6,1564.5,0.00960092]
[1744374794106,14.85553196,1564.6,1564.5,0.00960092]
[1744374794501,8.3756,1564.6,1564.5,12.86105446]
[1744374794698,8.3756,1564.6,1564.5,11.58195446]
[1744374794911,8.57651196,1564.6,1564.5,0.00960092]
[1744374795407,8.57651196,1564.6,1564.5,11.58195446]
[1744374795714,9.85553196,1564.6,1564.5,0.00960092]
[1744374795904,8.57651196,1564.6,1564.5,11.58195446]
[1744374796406,11.75854734,1564.8,1564.7,1.27894]
[1744374796605,11.75854734,1564.8,1564.7,12.85129354]
[1744374796606,0.00954734,1564.8,1564.7,12.85129354]
[1744374796803,0.2104593,1564.8,1564.7,11.57235354]
[1744374797109,0.00954734,1564.8,1564.7,12.85129354]
[1744374797316,0.00954734,1564.8,1564.7,11.57235354]
[1744374797614,1.27898,1564.7,1564.5,0.00960092]
[1744374797813,7.6266,1564.7,1564.6,11.57235354]
[1744374798015,9.10645196,1564.7,1564.6,11.57235354]
[1744374798716,1.27902,1564.6,1564.5,0.00960092]
[1744374799100,1.47993196,1564.6,1564.5,0.00960092]
[1744374799300,0.20091196,1564.6,1564.5,0.00960092]
[1744374799517,0.00954734,1564.8,1564.5,16.06885446]
[1744374799811,9.1159893,1564.8,1564.7,11.57235354]
[1744374800216,1.27899,1564.7,1564.5,4.49648092]
[1744374800607,1.47990196,1564.7,1564.6,11.57235354]
[1744374801310,0.20091196,1564.7,1564.6,12.85137354]
[1744374801507,0.00954734,1564.8,1564.7,1.27894]
[1744374801708,1.28845734,1564.8,1564.7,11.57235354]
[1744374801901,0.2104593,1564.8,1564.7,12.85129354]
[1744374802106,0.00954734,1564.8,1564.7,12.85129354]
[1744374802513,0.00954734,1564.8,1564.7,16.90158118]
[1744374802712,0.00954734,1564.8,1564.7,22.44923639]
[1744374803915,1.28839734,1564.8,1564.7,15.62264118]
[1744374804116,1.28839734,1564.8,1564.7,16.90132809]
[1744374804311,1.28839734,1564.8,1564.7,14.78015354]
[1744374804616,1.27902,1564.6,1564.5,0.00960092]
[1744374805013,9.8012,1564.7,1564.5,12.86105446]
[1744374805211,10.00211196,1564.7,1564.6,11.57235354]
[1744374806018,1.27902,1564.6,1564.5,3.21740092]
[1744374806223,1.27902,1564.6,1564.5,14.78975446]
[1744374806523,1.47993196,1564.6,1564.5,14.78975446]
[1744374807024,1.47993196,1564.6,1564.5,11.58195446]
[1744374807323,0.20091196,1564.6,1564.5,11.58195446]
[1744374807617,1.47993196,1564.6,1564.5,11.58195446]
[1744374809015,0.20091196,1564.6,1564.5,11.58195446]
[1744374809319,0.20091196,1564.6,1564.5,12.86105446]
[1744374809520,0.20091196,1564.6,1564.5,11.58195446]
[1744374809922,0.20091196,1564.6,1564.5,12.86105446]
[1744374810225,8.5222,1564.7,1564.6,1.27902]
[1744374810417,8.5222,1564.7,1564.6,12.85137354]
[1744374810418,8.72311196,1564.7,1564.6,12.85137354]
[1744374810617,10.00205196,1564.7,1564.6,11.57235354]
[1744374810817,8.72311196,1564.7,1564.6,11.57235354]
[1744374811220,8.72311196,1564.7,1564.5,8.12720092]
[1744374811425,3.19776,1564.5,1564.0,3.2078]
[1744374811727,1.27941,1564.2,1564.0,3.2078]
[1744374812025,9.53785,1564.1,1563.8,12.605]
[1744374812226,8.2584,1564.1,1563.9,9.1504307]
[1744374812427,8.24537983,1564.1,1564.0,15.97339245]
[1744374812722,8.24537983,1564.1,1564.0,12.76559245]
[1744374813321,9.52480983,1564.1,1564.0,12.76678278]
[1744374813519,8.24537983,1564.1,1564.0,15.97458278]
[1744374813825,9.52480983,1564.1,1564.0,15.97458278]
[1744374814828,1.27959,1563.9,1563.8,0.00960092]
[1744374815127,1.27959,1563.9,1563.4,13.09991992]
[1744374815128,1.27992,1563.6,1563.4,13.09991992]
[1744374815330,1.27992,1563.6,1563.5,0.845798]
[1744374815631,1.27992,1563.6,1563.5,12.21382033]
[1744374815819,3.2078,1564.2,1563.6,3.1996]
[1744374816016,1.27935,1564.2,1564.1,11.37144158]
[1744374816227,1.26632983,1564.2,1564.1,11.37144158]
[1744374817525,9.56400092,1564.3,1564.1,11.37144158]
[1744374817727,1.27935,1564.2,1564.1,11.37144158]
[1744374818031,9.56398092,1564.3,1564.1,11.37144158]
[1744374818228,1.27935,1564.2,1564.1,11.37144158]
[1744374818428,9.56403092,1564.3,1564.1,11.37144158]
[1744374818727,9.56397092,1564.3,1564.2,11.37144158]
[1744374818927,8.28470092,1564.3,1564.2,11.37144158]
[1744374819134,9.56396092,1564.3,1564.2,11.37144158]
[1744374819427,1.27943,1564.1,1564.0,3.2078]
[1744374819729,1.27959,1563.9,1563.7,8.37220092]
[1744374819932,18.6809,1564.0,1563.8,11.37144158]
[1744374820129,3.19909,1563.9,1563.7,11.37144158]
[1744374820321,3.19846,1564.2,1563.9,11.37144158]
[1744374820524,1.26648983,1564.0,1563.9,11.37144158]
[1744374820719,1.26648983,1564.0,1563.8,4.48745]
[1744374820720,1.29261017,1563.9,1563.8,3.2078]
[1744374821129,11.4787,1564.1,1563.8,14.56622141]
[1744374821431,12.75813,1564.1,1564.0,11.37144158]
[1744374821620,12.74510983,1564.1,1564.0,11.37144158]
[1744374822634,9.53730983,1564.1,1564.0,11.37144158]
[1744374823027,1.27955,1564.0,1563.8,11.25897983]
[1744374823227,1.27955,1564.0,1563.8,11.24595966]
[1744374823428,1.27955,1564.0,1563.9,11.37144158]
[1744374823737,1.27959,1563.9,1563.8,11.24595966]
[1744374824232,1.27959,1563.9,1563.8,19.43564158]
[1744374824428,1.27959,1563.9,1563.8,11.37144158]
[1744374824736,1.27966,1563.9,1563.7,0.00960092]
[1744374824934,1.27967,1563.8,1563.7,11.3810425]
[1744374825329,9.66106,1563.9,1563.7,11.3810425]
[1744374825742,9.66106,1563.9,1563.7,12.6607925]
[1744374825940,9.66106,1563.9,1563.8,11.37144158]
[1744374826436,8.3814,1563.9,1563.8,15.85891158]
[1744374826629,8.3814,1563.9,1563.8,20.85891158]
[1744374827437,8.3814,1563.9,1563.8,22.25060589]
[1744374827635,8.3814,1563.9,1563.8,22.25059363]
[1744374827935,8.3814,1563.9,1563.8,22.25058732]
[1744374829040,13.61795092,1564.3,1563.9,3.19898]
[1744374829234,1.26642983,1564.2,1564.1,15.85863158]
[1744374829432,1.26642983,1564.2,1564.1,3.2078]
[1744374829634,1.26642983,1564.2,1564.1,14.57924158]
[1744374830835,1.26642983,1564.2,1564.1,11.37144158]
[1744374831039,1.27959,1563.9,1563.8,3.2078]
[1744374831241,1.27959,1563.9,1563.8,4.47444983]
[1744374831440,1.27959,1563.9,1563.8,15.84589141]
[1744374831637,1.27959,1563.9,1563.8,16.68940123]
[1744374831842,1.27959,1563.9,1563.8,15.84584141]
[1744374832143,1.27949,1564.1,1563.9,1.27957]
[1744374832333,1.26646983,1564.1,1564.0,11.37144158]
[1744374832844,1.26646983,1564.1,1563.9,1.27957]
[1744374833042,1.27967,1563.8,1563.7,0.00960092]
[1744374833347,1.27987,1563.6,1563.4,1.27997]